[Event "*** Titled Tuesday Blitz"]
[Site "Chess.com"]
[Date "2020.05.12"]
[Round "8"]
[White "maurito96"]
[Black "MoreChessJulia"]
[Result "1-0"]
[WhiteElo "2203"]
[BlackElo "1798"]
[TimeControl "180+1"]
[EndTime "11:28:24 PDT"]
[Termination "maurito96 won by resignation"]

1. Nf3 {[%clk 0:03:00.9]} 1... Nf6 {[%clk 0:02:58.5]} 2. c4 {[%clk 0:03:00]}
2... c5 {[%clk 0:02:57.1]} 3. g3 {[%clk 0:02:59.8]} 3... Nc6 {[%clk 0:02:57]} 4.
Bg2 {[%clk 0:03:00.2]} 4... d6 {[%clk 0:02:57.2]} 5. O-O {[%clk 0:02:59.8]} 5...
Bg4 {[%clk 0:02:57.1]} 6. h3 {[%clk 0:02:57.5]} 6... Bxf3 {[%clk 0:02:55.9]} 7.
Bxf3 {[%clk 0:02:57.1]} 7... Qd7 {[%clk 0:02:56.3]} 8. Nc3 {[%clk 0:02:55.9]}
8... a6 {[%clk 0:02:54.9]} 9. Bg2 {[%clk 0:02:55.5]} 9... e6 {[%clk 0:02:54.3]}
10. e3 {[%clk 0:02:50.1]} 10... d5 {[%clk 0:02:51.8]} 11. cxd5 {[%clk
0:02:49.2]} 11... exd5 {[%clk 0:02:50.8]} 12. d4 {[%clk 0:02:49.9]} 12... c4
{[%clk 0:02:48.5]} 13. b3 {[%clk 0:02:50.2]} 13... b5 {[%clk 0:02:47.9]} 14.
bxc4 {[%clk 0:02:49.7]} 14... bxc4 {[%clk 0:02:48.1]} 15. Rb1 {[%clk 0:02:48.7]}
15... Be7 {[%clk 0:02:47.3]} 16. Qa4 {[%clk 0:02:45]} 16... O-O {[%clk
0:02:45.1]} 17. Ba3 {[%clk 0:02:40.9]} 17... Bxa3 {[%clk 0:02:43.4]} 18. Qxa3
{[%clk 0:02:40.6]} 18... Ne7 {[%clk 0:02:43.1]} 19. Rb6 {[%clk 0:02:32.2]} 19...
Rfb8 {[%clk 0:02:37.7]} 20. Rfb1 {[%clk 0:02:27.1]} 20... Rxb6 {[%clk 0:02:30]}
21. Rxb6 {[%clk 0:02:25]} 21... a5 {[%clk 0:02:24.9]} 22. Qc5 {[%clk 0:02:22.9]}
22... Rc8 {[%clk 0:02:22.9]} 23. Qxa5 {[%clk 0:02:21.5]} 23... Nc6 {[%clk
0:02:20.6]} 24. Qa4 {[%clk 0:02:18.2]} 24... Qa7 {[%clk 0:02:16.7]} 25. Rxc6
{[%clk 0:02:15.1]} 1-0

[Event "*** Titled Tuesday Blitz"]
[Site "Chess.com"]
[Date "2020.05.12"]
[Round "8"]
[White "ajdemipopushi"]
[Black "lifeissofun"]
[Result "1-0"]
[WhiteElo "2229"]
[BlackElo "2330"]
[TimeControl "180+1"]
[EndTime "11:28:37 PDT"]
[Termination "ajdemipopushi won by checkmate"]

1. Nf3 {[%clk 0:03:00.9]} 1... c5 {[%clk 0:03:00.5]} 2. g3 {[%clk 0:03:00.9]}
2... Nf6 {[%clk 0:03:00.3]} 3. Bg2 {[%clk 0:03:01.2]} 3... d5 {[%clk 0:03:01.2]}
4. O-O {[%clk 0:02:59.6]} 4... e6 {[%clk 0:03:01.8]} 5. d4 {[%clk 0:02:59.6]}
5... Be7 {[%clk 0:03:00]} 6. c4 {[%clk 0:02:59.4]} 6... Kd7 {[%clk 0:02:58.7]}
7. Nc3 {[%clk 0:02:51]} 7... Ke8 {[%clk 0:02:51.8]} 8. Bg5 {[%clk 0:02:37.9]}
8... dxc4 {[%clk 0:02:50.5]} 9. Qa4+ {[%clk 0:02:30.2]} 9... Bd7 {[%clk
0:02:48.5]} 10. Qxc4 {[%clk 0:02:27.7]} 10... cxd4 {[%clk 0:02:37.6]} 11. Nxd4
{[%clk 0:02:25]} 11... Qc8 {[%clk 0:02:36.7]} 12. Qxc8+ {[%clk 0:02:17.6]} 12...
Bxc8 {[%clk 0:02:37.6]} 13. Ndb5 {[%clk 0:02:12.9]} 13... Na6 {[%clk 0:02:31.3]}
14. Rfd1 {[%clk 0:02:09]} 14... Nd7 {[%clk 0:02:17.2]} 15. Nd6+ {[%clk
0:01:59.3]} 15... Bxd6 {[%clk 0:02:13]} 16. Rxd6 {[%clk 0:01:59.1]} 16... Ndc5
{[%clk 0:01:51.3]} 17. Rd8# {[%clk 0:01:55.3]} 1-0

[Event "*** Titled Tuesday Blitz"]
[Site "Chess.com"]
[Date "2020.05.12"]
[Round "8"]
[White "Djager97"]
[Black "RobertoJBM"]
[Result "0-1"]
[WhiteElo "2424"]
[BlackElo "2581"]
[TimeControl "180+1"]
[EndTime "11:29:34 PDT"]
[Termination "RobertoJBM won by resignation"]

1. e4 {[%clk 0:03:00.9]} 1... c6 {[%clk 0:02:57.9]} 2. d4 {[%clk 0:02:59.4]}
2... d5 {[%clk 0:02:58.8]} 3. Nc3 {[%clk 0:03:00.1]} 3... dxe4 {[%clk
0:02:58.4]} 4. Nxe4 {[%clk 0:03:01]} 4... Nd7 {[%clk 0:02:58.3]} 5. Bd3 {[%clk
0:02:59.1]} 5... Ngf6 {[%clk 0:02:58.2]} 6. Ng5 {[%clk 0:02:59.5]} 6... e6
{[%clk 0:02:57.3]} 7. Qe2 {[%clk 0:02:59.5]} 7... Bd6 {[%clk 0:02:56.3]} 8. N1f3
{[%clk 0:02:59.4]} 8... h6 {[%clk 0:02:56.2]} 9. Ne4 {[%clk 0:02:59.4]} 9...
Nxe4 {[%clk 0:02:56.2]} 10. Qxe4 {[%clk 0:03:00.3]} 10... Qc7 {[%clk 0:02:56.7]}
11. Bd2 {[%clk 0:02:59.6]} 11... b6 {[%clk 0:02:57]} 12. O-O-O {[%clk
0:02:59.2]} 12... Bb7 {[%clk 0:02:57.6]} 13. Qe2 {[%clk 0:02:55]} 13... O-O-O
{[%clk 0:02:57.3]} 14. c4 {[%clk 0:02:47.5]} 14... c5 {[%clk 0:02:56.6]} 15. Bc3
{[%clk 0:02:43.8]} 15... Nf6 {[%clk 0:02:55.1]} 16. Kb1 {[%clk 0:02:35.9]} 16...
Rhe8 {[%clk 0:02:54]} 17. dxc5 {[%clk 0:02:32.8]} 17... Bxc5 {[%clk 0:02:52]}
18. Ne5 {[%clk 0:02:29.9]} 18... Bd4 {[%clk 0:02:45.6]} 19. Bxd4 {[%clk
0:02:17.7]} 19... Rxd4 {[%clk 0:02:46.5]} 20. f3 {[%clk 0:02:05.4]} 20... Red8
{[%clk 0:02:40.3]} 21. Bc2 {[%clk 0:02:01.7]} 21... Rxd1+ {[%clk 0:02:27.3]} 22.
Rxd1 {[%clk 0:02:02.6]} 22... Rxd1+ {[%clk 0:02:27.6]} 23. Bxd1 {[%clk
0:02:03.5]} 23... Be4+ {[%clk 0:02:27.5]} 24. Bc2 {[%clk 0:01:52.5]} 24... Qxe5
{[%clk 0:02:24.6]} 25. Bxe4 {[%clk 0:01:51.1]} 25... Qxh2 {[%clk 0:02:09.6]} 26.
c5 {[%clk 0:01:36.9]} 26... Nxe4 {[%clk 0:02:06]} 27. Qxe4 {[%clk 0:01:31.9]}
27... Qg1+ {[%clk 0:02:04.7]} 28. Kc2 {[%clk 0:01:31.4]} 28... Qxc5+ {[%clk
0:02:04.3]} 29. Kb1 {[%clk 0:01:29.9]} 29... Qf5 {[%clk 0:02:02.6]} 0-1

[Event "*** Titled Tuesday Blitz"]
[Site "Chess.com"]
[Date "2020.05.12"]
[Round "8"]
[White "pfalcon1949"]
[Black "Chuchofrio1"]
[Result "1/2-1/2"]
[WhiteElo "1989"]
[BlackElo "2207"]
[TimeControl "180+1"]
[EndTime "11:29:45 PDT"]
[Termination "Game drawn by repetition"]

1. d4 {[%clk 0:03:00.9]} 1... f5 {[%clk 0:02:57.1]} 2. Nf3 {[%clk 0:02:58.6]}
2... Nf6 {[%clk 0:02:56.5]} 3. g3 {[%clk 0:02:59.1]} 3... d6 {[%clk 0:02:56.2]}
4. Bg2 {[%clk 0:02:59.6]} 4... g6 {[%clk 0:02:56.6]} 5. O-O {[%clk 0:02:59.7]}
5... Bg7 {[%clk 0:02:57]} 6. c4 {[%clk 0:02:59.4]} 6... O-O {[%clk 0:02:57.5]}
7. d5 {[%clk 0:02:59.7]} 7... Nbd7 {[%clk 0:02:56.9]} 8. Nc3 {[%clk 0:02:59.7]}
8... Ne5 {[%clk 0:02:57.3]} 9. Nxe5 {[%clk 0:02:56.7]} 9... dxe5 {[%clk
0:02:57.1]} 10. e4 {[%clk 0:02:57.6]} 10... fxe4 {[%clk 0:02:56.4]} 11. Nxe4
{[%clk 0:02:55.8]} 11... Nxe4 {[%clk 0:02:57.3]} 12. Bxe4 {[%clk 0:02:55.9]}
12... Rb8 {[%clk 0:02:56.5]} 13. Qc2 {[%clk 0:02:55.8]} 13... e6 {[%clk
0:02:55.9]} 14. Be3 {[%clk 0:02:54.7]} 14... exd5 {[%clk 0:02:55.7]} 15. cxd5
{[%clk 0:02:52.3]} 15... Bf5 {[%clk 0:02:55.8]} 16. Rac1 {[%clk 0:02:49.1]}
16... Bxe4 {[%clk 0:02:54.3]} 17. Qxe4 {[%clk 0:02:49.2]} 17... a6 {[%clk
0:02:54]} 18. Rfd1 {[%clk 0:02:48]} 18... Rc8 {[%clk 0:02:46.4]} 19. Bc5 {[%clk
0:02:42.4]} 19... Rf7 {[%clk 0:02:40.9]} 20. b4 {[%clk 0:02:32.4]} 20... Qf6
{[%clk 0:02:40.8]} 21. a3 {[%clk 0:02:27.8]} 21... Bh6 {[%clk 0:02:38.8]} 22.
Rc3 {[%clk 0:02:19.8]} 22... b6 {[%clk 0:02:33.6]} 23. Be3 {[%clk 0:02:15.1]}
23... Bxe3 {[%clk 0:02:34]} 24. Qxe3 {[%clk 0:02:15]} 24... Rcf8 {[%clk
0:02:34]} 25. Rc2 {[%clk 0:02:02.9]} 25... Qf5 {[%clk 0:02:30.5]} 26. Rdc1
{[%clk 0:02:01.5]} 26... g5 {[%clk 0:02:21.5]} 27. Rxc7 {[%clk 0:01:48.5]} 27...
Qxf2+ {[%clk 0:02:20.7]} 28. Qxf2 {[%clk 0:01:48.1]} 28... Rxf2 {[%clk
0:02:21.6]} 29. d6 {[%clk 0:01:45.9]} 29... Rd2 {[%clk 0:02:22]} 30. d7 {[%clk
0:01:45.5]} 30... Rff2 {[%clk 0:02:22.2]} 31. Rc8+ {[%clk 0:01:41]} 31... Kg7
{[%clk 0:02:21.9]} 32. d8=Q {[%clk 0:01:22.3]} 32... Rg2+ {[%clk 0:02:21.3]} 33.
Kf1 {[%clk 0:01:17.9]} 33... Rgf2+ {[%clk 0:02:21.5]} 34. Ke1 {[%clk 0:01:13.5]}
34... Rfe2+ {[%clk 0:02:21.5]} 35. Kf1 {[%clk 0:01:12.6]} 35... Rf2+ {[%clk
0:02:21.8]} 36. Kg1 {[%clk 0:01:08.7]} 36... Rg2+ {[%clk 0:02:22.1]} 37. Kf1
{[%clk 0:01:07.1]} 37... Rgf2+ {[%clk 0:02:19.6]} 1/2-1/2

[Event "*** Titled Tuesday Blitz"]
[Site "Chess.com"]
[Date "2020.05.12"]
[Round "8"]
[White "mirceaparligras"]
[Black "guillembaches"]
[Result "1-0"]
[WhiteElo "2578"]
[BlackElo "2423"]
[TimeControl "180+1"]
[EndTime "11:29:50 PDT"]
[Termination "mirceaparligras won by resignation"]

1. d4 {[%clk 0:03:00.9]} 1... Nf6 {[%clk 0:02:58.3]} 2. c4 {[%clk 0:03:00.9]}
2... e6 {[%clk 0:02:58.5]} 3. Nf3 {[%clk 0:03:00]} 3... d5 {[%clk 0:02:58.5]} 4.
Nc3 {[%clk 0:02:58]} 4... Be7 {[%clk 0:02:58.4]} 5. Bf4 {[%clk 0:02:58.4]} 5...
O-O {[%clk 0:02:56.8]} 6. e3 {[%clk 0:02:59]} 6... b6 {[%clk 0:02:55.4]} 7. Bd3
{[%clk 0:02:57.9]} 7... dxc4 {[%clk 0:02:53.5]} 8. Bxc4 {[%clk 0:02:57.8]} 8...
Ba6 {[%clk 0:02:53.6]} 9. Bxa6 {[%clk 0:02:57]} 9... Nxa6 {[%clk 0:02:54.5]} 10.
O-O {[%clk 0:02:53.7]} 10... c5 {[%clk 0:02:52]} 11. Qa4 {[%clk 0:02:52.4]}
11... Qc8 {[%clk 0:02:45.6]} 12. Rac1 {[%clk 0:02:50.7]} 12... Qb7 {[%clk
0:02:41]} 13. Ne5 {[%clk 0:02:46.8]} 13... Rac8 {[%clk 0:02:31.9]} 14. Nb5
{[%clk 0:02:40.2]} 14... Rfd8 {[%clk 0:02:15.2]} 15. Rfd1 {[%clk 0:02:30.7]}
15... Nd5 {[%clk 0:02:04.3]} 16. Bg3 {[%clk 0:02:22.7]} 16... cxd4 {[%clk
0:02:03.4]} 17. exd4 {[%clk 0:02:14.6]} 17... h6 {[%clk 0:01:41.9]} 18. h3
{[%clk 0:02:12.5]} 18... Bf8 {[%clk 0:01:38.4]} 19. a3 {[%clk 0:02:08.4]} 19...
Ne7 {[%clk 0:01:17.9]} 20. Rxc8 {[%clk 0:01:59.9]} 20... Rxc8 {[%clk 0:01:15.5]}
21. Nd6 {[%clk 0:01:59.3]} 1-0

[Event "*** Titled Tuesday Blitz"]
[Site "Chess.com"]
[Date "2020.05.12"]
[Round "8"]
[White "mjray79"]
[Black "MightyGMpretender"]
[Result "0-1"]
[WhiteElo "2284"]
[BlackElo "2585"]
[TimeControl "180+1"]
[EndTime "11:29:53 PDT"]
[Termination "MightyGMpretender won by resignation"]

1. d4 {[%clk 0:03:00.9]} 1... Nf6 {[%clk 0:02:59.8]} 2. c4 {[%clk 0:03:01.3]}
2... e6 {[%clk 0:02:59.6]} 3. g3 {[%clk 0:03:01.3]} 3... c5 {[%clk 0:02:58.6]}
4. d5 {[%clk 0:03:00.1]} 4... exd5 {[%clk 0:02:58.8]} 5. cxd5 {[%clk 0:03:01]}
5... d6 {[%clk 0:02:59.6]} 6. Bg2 {[%clk 0:03:00.9]} 6... g6 {[%clk 0:03:00.2]}
7. a4 {[%clk 0:02:59.9]} 7... Bg7 {[%clk 0:03:00.6]} 8. Nf3 {[%clk 0:03:00.3]}
8... O-O {[%clk 0:03:01.2]} 9. O-O {[%clk 0:03:00.7]} 9... Re8 {[%clk 0:03:00]}
10. Nc3 {[%clk 0:03:00.9]} 10... a6 {[%clk 0:02:48.7]} 11. Re1 {[%clk 0:02:57]}
11... Nbd7 {[%clk 0:02:39.6]} 12. e4 {[%clk 0:02:55.4]} 12... c4 {[%clk
0:02:20.3]} 13. Bf4 {[%clk 0:02:17.1]} 13... Nc5 {[%clk 0:02:19.5]} 14. Bf1
{[%clk 0:02:15.8]} 14... Nfxe4 {[%clk 0:02:09.8]} 15. Bxc4 {[%clk 0:02:06.6]}
15... Nxc3 {[%clk 0:02:04.2]} 16. bxc3 {[%clk 0:02:05.6]} 16... Bg4 {[%clk
0:01:49.1]} 17. Rxe8+ {[%clk 0:01:55.4]} 17... Qxe8 {[%clk 0:01:50]} 18. Bxd6
{[%clk 0:01:51.8]} 18... Ne4 {[%clk 0:01:49.6]} 19. Bb4 {[%clk 0:01:24.3]} 19...
Rc8 {[%clk 0:01:39.1]} 20. Be2 {[%clk 0:01:08.6]} 20... Bxc3 {[%clk 0:01:38.3]}
21. Bxc3 {[%clk 0:01:07.7]} 21... Nxc3 {[%clk 0:01:37.9]} 0-1

[Event "*** Titled Tuesday Blitz"]
[Site "Chess.com"]
[Date "2020.05.12"]
[Round "8"]
[White "czasnaszachy"]
[Black "Papa12341234"]
[Result "0-1"]
[WhiteElo "2359"]
[BlackElo "2503"]
[TimeControl "180+1"]
[EndTime "11:29:54 PDT"]
[Termination "Papa12341234 won by checkmate"]

1. d4 {[%clk 0:02:53.1]} 1... Nf6 {[%clk 0:03:00]} 2. c4 {[%clk 0:02:47.5]} 2...
g6 {[%clk 0:03:00.1]} 3. Nc3 {[%clk 0:02:44.4]} 3... d5 {[%clk 0:03:00.4]} 4.
cxd5 {[%clk 0:02:43.8]} 4... Nxd5 {[%clk 0:03:01.3]} 5. e4 {[%clk 0:02:43.5]}
5... Nxc3 {[%clk 0:03:01.6]} 6. bxc3 {[%clk 0:02:43.6]} 6... Bg7 {[%clk
0:03:02.2]} 7. Bc4 {[%clk 0:02:43.9]} 7... c5 {[%clk 0:03:02.2]} 8. Ne2 {[%clk
0:02:43.3]} 8... Nc6 {[%clk 0:03:02.5]} 9. Be3 {[%clk 0:02:42]} 9... O-O {[%clk
0:03:02.9]} 10. O-O {[%clk 0:02:41.4]} 10... b6 {[%clk 0:03:03.1]} 11. Rc1
{[%clk 0:02:26.5]} 11... Bb7 {[%clk 0:03:00.8]} 12. Qd2 {[%clk 0:02:24.8]} 12...
Rc8 {[%clk 0:02:57.3]} 13. Rfd1 {[%clk 0:02:21.3]} 13... cxd4 {[%clk 0:02:55]}
14. cxd4 {[%clk 0:02:19.6]} 14... Qd6 {[%clk 0:02:55.6]} 15. e5 {[%clk
0:01:37.4]} 15... Qd7 {[%clk 0:02:54.3]} 16. Bh6 {[%clk 0:01:06.6]} 16... Nxe5
{[%clk 0:02:45.4]} 17. dxe5 {[%clk 0:00:58.7]} 17... Qg4 {[%clk 0:02:40.3]} 18.
f3 {[%clk 0:00:14.2]} 18... Bxf3 {[%clk 0:02:34.5]} 19. Nd4 {[%clk 0:00:14.3]}
19... Bxh6 {[%clk 0:02:28.7]} 20. Qxh6 {[%clk 0:00:09.8]} 20... Qxg2# {[%clk
0:02:28]} 0-1

[Event "*** Titled Tuesday Blitz"]
[Site "Chess.com"]
[Date "2020.05.12"]
[Round "8"]
[White "francyIM"]
[Black "Kavyev_Ruslan"]
[Result "1-0"]
[WhiteElo "2664"]
[BlackElo "2462"]
[TimeControl "180+1"]
[EndTime "11:30:04 PDT"]
[Termination "francyIM won by resignation"]

1. d4 {[%clk 0:03:00.9]} 1... Nf6 {[%clk 0:02:59.9]} 2. c4 {[%clk 0:03:00.4]}
2... g6 {[%clk 0:03:00.7]} 3. Nc3 {[%clk 0:02:58.9]} 3... d5 {[%clk 0:03:00.6]}
4. cxd5 {[%clk 0:02:56.6]} 4... Nxd5 {[%clk 0:03:01.5]} 5. e4 {[%clk 0:02:55.6]}
5... Nxc3 {[%clk 0:03:01.8]} 6. bxc3 {[%clk 0:02:54.7]} 6... Bg7 {[%clk
0:03:02.7]} 7. Bc4 {[%clk 0:02:52.7]} 7... c5 {[%clk 0:03:02.6]} 8. Ne2 {[%clk
0:02:46.2]} 8... O-O {[%clk 0:03:02.5]} 9. O-O {[%clk 0:02:42.8]} 9... Nc6
{[%clk 0:03:02.3]} 10. Be3 {[%clk 0:02:42.9]} 10... Bg4 {[%clk 0:03:02.3]} 11.
f3 {[%clk 0:02:42.2]} 11... Bd7 {[%clk 0:03:03]} 12. Qd2 {[%clk 0:02:35]} 12...
Qa5 {[%clk 0:03:02.3]} 13. d5 {[%clk 0:02:31.6]} 13... Ne5 {[%clk 0:03:02.1]}
14. Bb3 {[%clk 0:02:31.9]} 14... Bb5 {[%clk 0:03:02.8]} 15. Rfc1 {[%clk
0:02:17]} 15... Nc4 {[%clk 0:03:01.3]} 16. Bxc4 {[%clk 0:02:16.3]} 16... Bxc4
{[%clk 0:03:02.2]} 17. Ng3 {[%clk 0:02:16.7]} 17... e6 {[%clk 0:02:57.3]} 18.
Bh6 {[%clk 0:02:11.4]} 18... exd5 {[%clk 0:02:56.5]} 19. Bxg7 {[%clk 0:02:11]}
19... Kxg7 {[%clk 0:02:56.3]} 20. exd5 {[%clk 0:02:06.1]} 20... Rad8 {[%clk
0:02:56.9]} 21. d6 {[%clk 0:01:59.9]} 21... Rfe8 {[%clk 0:02:41.5]} 22. Qg5
{[%clk 0:01:55.8]} 22... Be6 {[%clk 0:02:38.1]} 23. Nh5+ {[%clk 0:01:54.2]}
23... Kg8 {[%clk 0:02:34]} 24. Nf6+ {[%clk 0:01:54.1]} 24... Kg7 {[%clk
0:02:34.3]} 25. Nxe8+ {[%clk 0:01:54.2]} 25... Rxe8 {[%clk 0:02:35.2]} 26. c4
{[%clk 0:01:52.7]} 26... Qb6 {[%clk 0:02:31.8]} 27. Qf4 {[%clk 0:01:49.1]} 27...
Rd8 {[%clk 0:02:31.1]} 28. Rab1 {[%clk 0:01:47.4]} 28... Qc6 {[%clk 0:02:30.2]}
29. h4 {[%clk 0:01:45]} 29... h5 {[%clk 0:02:28.1]} 30. Qe5+ {[%clk 0:01:42.3]}
30... Kg8 {[%clk 0:02:27.6]} 31. Kh2 {[%clk 0:01:32.5]} 31... b6 {[%clk
0:02:26.7]} 32. Rd1 {[%clk 0:01:30.4]} 32... Bxc4 {[%clk 0:02:26.6]} 33. Qf6
{[%clk 0:01:28.3]} 33... Rd7 {[%clk 0:02:25.3]} 34. Rb2 {[%clk 0:01:21.4]} 34...
Be6 {[%clk 0:02:23.5]} 35. Re2 {[%clk 0:01:20.5]} 35... Rxd6 {[%clk 0:02:23.3]}
36. Red2 {[%clk 0:01:19.5]} 36... Bd5 {[%clk 0:02:10.8]} 37. Qe5 {[%clk
0:01:17.5]} 1-0

[Event "*** Titled Tuesday Blitz"]
[Site "Chess.com"]
[Date "2020.05.12"]
[Round "8"]
[White "IwkooO"]
[Black "Gajuchess"]
[Result "0-1"]
[WhiteElo "2532"]
[BlackElo "2700"]
[TimeControl "180+1"]
[EndTime "11:30:06 PDT"]
[Termination "Gajuchess won by resignation"]

1. c4 {[%clk 0:03:00.9]} 1... g6 {[%clk 0:03:00.9]} 2. g3 {[%clk 0:02:56.2]}
2... Bg7 {[%clk 0:03:01.8]} 3. Bg2 {[%clk 0:02:56.4]} 3... c5 {[%clk 0:02:59.3]}
4. Nc3 {[%clk 0:02:56.3]} 4... Nc6 {[%clk 0:02:57.4]} 5. e4 {[%clk 0:02:54.5]}
5... d6 {[%clk 0:02:57]} 6. Nge2 {[%clk 0:02:55]} 6... Nf6 {[%clk 0:02:56.1]} 7.
d3 {[%clk 0:02:54.4]} 7... O-O {[%clk 0:02:57]} 8. O-O {[%clk 0:02:54.2]} 8...
Bd7 {[%clk 0:02:48.7]} 9. h3 {[%clk 0:02:52.8]} 9... Rb8 {[%clk 0:02:48.7]} 10.
Be3 {[%clk 0:02:52.4]} 10... a6 {[%clk 0:02:49.3]} 11. a4 {[%clk 0:02:50.8]}
11... Ne8 {[%clk 0:02:47.7]} 12. Qd2 {[%clk 0:02:27.3]} 12... Nd4 {[%clk
0:02:46.8]} 13. Rab1 {[%clk 0:02:18.3]} 13... b5 {[%clk 0:02:42]} 14. axb5
{[%clk 0:02:11.3]} 14... axb5 {[%clk 0:02:41.8]} 15. b3 {[%clk 0:01:52.4]} 15...
Nc7 {[%clk 0:02:39.3]} 16. Bh6 {[%clk 0:01:36.8]} 16... b4 {[%clk 0:02:39.7]}
17. Bxg7 {[%clk 0:01:20]} 17... bxc3 {[%clk 0:02:39.7]} 18. Qh6 {[%clk 0:00:38]}
18... Nxe2+ {[%clk 0:02:39.5]} 19. Kh2 {[%clk 0:00:38.6]} 19... Ne6 {[%clk
0:02:39.8]} 20. Bxf8 {[%clk 0:00:37.3]} 20... Qxf8 {[%clk 0:02:40.7]} 21. Qe3
{[%clk 0:00:30.2]} 21... c2 {[%clk 0:02:41]} 22. Qxe2 {[%clk 0:00:27]} 22...
cxb1=Q {[%clk 0:02:41.2]} 23. Rxb1 {[%clk 0:00:27.9]} 23... Nd4 {[%clk
0:02:40.9]} 24. Qa2 {[%clk 0:00:26.4]} 24... Bc6 {[%clk 0:02:36.3]} 25. f4
{[%clk 0:00:26]} 25... Qd8 {[%clk 0:02:34.9]} 26. Qa7 {[%clk 0:00:23.9]} 26...
Rb7 {[%clk 0:02:33.3]} 27. Qa3 {[%clk 0:00:21.8]} 27... Qb8 {[%clk 0:02:33.2]}
28. Rb2 {[%clk 0:00:19.7]} 28... Rxb3 {[%clk 0:02:32.9]} 29. Rxb3 {[%clk
0:00:19.9]} 29... Qxb3 {[%clk 0:02:33.8]} 30. Qa6 {[%clk 0:00:20.2]} 30... Qxd3
{[%clk 0:02:32.8]} 0-1

[Event "*** Titled Tuesday Blitz"]
[Site "Chess.com"]
[Date "2020.05.12"]
[Round "8"]
[White "korbul"]
[Black "kirillshevchenko"]
[Result "0-1"]
[WhiteElo "2563"]
[BlackElo "2812"]
[TimeControl "180+1"]
[EndTime "11:30:13 PDT"]
[Termination "kirillshevchenko won by resignation"]

1. d4 {[%clk 0:03:00.9]} 1... Nf6 {[%clk 0:02:56.3]} 2. c4 {[%clk 0:03:00.5]}
2... g6 {[%clk 0:02:56.7]} 3. Nc3 {[%clk 0:02:59.8]} 3... Bg7 {[%clk 0:02:57.3]}
4. e4 {[%clk 0:02:59.5]} 4... d6 {[%clk 0:02:57.6]} 5. f3 {[%clk 0:02:59.6]}
5... O-O {[%clk 0:02:58.1]} 6. Bg5 {[%clk 0:02:59.9]} 6... a6 {[%clk 0:02:58.7]}
7. Nge2 {[%clk 0:02:55.7]} 7... Nbd7 {[%clk 0:02:54.2]} 8. Qd2 {[%clk
0:02:53.8]} 8... b5 {[%clk 0:02:53.7]} 9. cxb5 {[%clk 0:02:51]} 9... axb5 {[%clk
0:02:54.6]} 10. Nxb5 {[%clk 0:02:50.8]} 10... c6 {[%clk 0:02:54.4]} 11. Nbc3
{[%clk 0:02:50.5]} 11... e5 {[%clk 0:02:54.8]} 12. Bh6 {[%clk 0:02:43.1]} 12...
Nxe4 {[%clk 0:02:40.7]} 13. Nxe4 {[%clk 0:02:39.1]} 13... Qh4+ {[%clk
0:02:40.6]} 14. g3 {[%clk 0:02:39]} 14... Qxh6 {[%clk 0:02:41.2]} 15. Qxh6
{[%clk 0:02:38.8]} 15... Bxh6 {[%clk 0:02:42.1]} 16. Nxd6 {[%clk 0:02:38.9]}
16... Ba6 {[%clk 0:02:42.4]} 17. Kf2 {[%clk 0:02:25]} 17... Rfd8 {[%clk
0:01:55.3]} 18. Rd1 {[%clk 0:02:00.5]} 18... Bf8 {[%clk 0:01:26.8]} 19. dxe5
{[%clk 0:01:44.5]} 19... Nxe5 {[%clk 0:01:25.8]} 20. f4 {[%clk 0:01:31.5]} 20...
Ng4+ {[%clk 0:01:18.2]} 21. Kf3 {[%clk 0:01:30]} 21... h5 {[%clk 0:01:15.8]} 22.
Nc3 {[%clk 0:01:22.8]} 22... Bxf1 {[%clk 0:01:11.6]} 0-1

[Event "*** Titled Tuesday Blitz"]
[Site "Chess.com"]
[Date "2020.05.12"]
[Round "8"]
[White "Hasangatin_Ramil"]
[Black "Kolle05"]
[Result "1-0"]
[WhiteElo "2558"]
[BlackElo "2394"]
[TimeControl "180+1"]
[EndTime "11:30:14 PDT"]
[Termination "Hasangatin_Ramil won by resignation"]

1. e4 {[%clk 0:03:00.9]} 1... c5 {[%clk 0:02:59.4]} 2. Nf3 {[%clk 0:03:00.9]}
2... d6 {[%clk 0:02:59.8]} 3. d4 {[%clk 0:03:00.1]} 3... cxd4 {[%clk 0:03:00.7]}
4. Qxd4 {[%clk 0:03:00.3]} 4... a6 {[%clk 0:02:59.8]} 5. Be3 {[%clk 0:02:59.6]}
5... Nc6 {[%clk 0:02:59.4]} 6. Qb6 {[%clk 0:02:59.8]} 6... Qxb6 {[%clk
0:02:55.5]} 7. Bxb6 {[%clk 0:03:00.7]} 7... Nf6 {[%clk 0:02:53.8]} 8. Nc3 {[%clk
0:03:01]} 8... Be6 {[%clk 0:02:39.4]} 9. Ng5 {[%clk 0:02:57.6]} 9... g6 {[%clk
0:02:28.9]} 10. Nxe6 {[%clk 0:02:56.4]} 10... fxe6 {[%clk 0:02:29.8]} 11. Bc4
{[%clk 0:02:56.5]} 11... Kd7 {[%clk 0:02:27.7]} 12. O-O-O {[%clk 0:02:50.3]}
12... Bh6+ {[%clk 0:02:25.8]} 13. Kb1 {[%clk 0:02:49.4]} 13... Rac8 {[%clk
0:02:23.7]} 14. Bb3 {[%clk 0:02:42.5]} 14... Ne5 {[%clk 0:02:03.1]} 15. g3
{[%clk 0:02:34.5]} 15... Rxc3 {[%clk 0:01:59.5]} 16. bxc3 {[%clk 0:02:20.5]}
16... Nxe4 {[%clk 0:01:59]} 17. Bd4 {[%clk 0:02:19.7]} 17... Bd2 {[%clk
0:00:27]} 18. Bxe5 {[%clk 0:02:02]} 18... dxe5 {[%clk 0:00:27.9]} 19. f3 {[%clk
0:02:02]} 19... Nxc3+ {[%clk 0:00:27.2]} 20. Kb2 {[%clk 0:02:01.8]} 20... Nxd1+
{[%clk 0:00:25.4]} 21. Rxd1 {[%clk 0:02:02.7]} 1-0

[Event "*** Titled Tuesday Blitz"]
[Site "Chess.com"]
[Date "2020.05.12"]
[Round "8"]
[White "PIwan"]
[Black "Quattroporte300"]
[Result "1-0"]
[WhiteElo "2504"]
[BlackElo "2327"]
[TimeControl "180+1"]
[EndTime "11:30:16 PDT"]
[Termination "PIwan won by resignation"]

1. c4 {[%clk 0:03:00.9]} 1... Nf6 {[%clk 0:02:58.5]} 2. Nc3 {[%clk 0:03:00.8]}
2... e5 {[%clk 0:02:55.1]} 3. Nf3 {[%clk 0:03:00.5]} 3... Nc6 {[%clk 0:02:51.2]}
4. e3 {[%clk 0:03:00.9]} 4... Bb4 {[%clk 0:02:43.7]} 5. Qc2 {[%clk 0:03:00.6]}
5... O-O {[%clk 0:02:42.4]} 6. Nd5 {[%clk 0:03:00.3]} 6... Bc5 {[%clk 0:02:36]}
7. a3 {[%clk 0:02:59.2]} 7... a5 {[%clk 0:02:31.7]} 8. Bd3 {[%clk 0:02:54.8]}
8... h6 {[%clk 0:02:20.9]} 9. O-O {[%clk 0:02:54.1]} 9... d6 {[%clk 0:02:20.6]}
10. b3 {[%clk 0:02:52.8]} 10... Re8 {[%clk 0:02:17]} 11. Bb2 {[%clk 0:02:50.8]}
11... Bg4 {[%clk 0:02:12.9]} 12. Nxf6+ {[%clk 0:02:50.6]} 12... Qxf6 {[%clk
0:02:11.1]} 13. Bh7+ {[%clk 0:02:51.5]} 13... Kh8 {[%clk 0:02:09.9]} 14. Be4
{[%clk 0:02:52.4]} 14... Qe7 {[%clk 0:01:44]} 15. h3 {[%clk 0:02:41.6]} 15...
Be6 {[%clk 0:01:32.6]} 16. d4 {[%clk 0:02:38.4]} 16... f5 {[%clk 0:00:45.8]} 17.
Bxc6 {[%clk 0:02:33.5]} 17... bxc6 {[%clk 0:00:24.3]} 18. dxc5 {[%clk
0:02:32.5]} 18... e4 {[%clk 0:00:24.3]} 19. Nd4 {[%clk 0:02:18.6]} 19... Bd7
{[%clk 0:00:19.9]} 20. cxd6 {[%clk 0:02:17.2]} 20... cxd6 {[%clk 0:00:19.8]} 21.
Rad1 {[%clk 0:02:17.8]} 21... Qg5 {[%clk 0:00:17.7]} 22. Ne2 {[%clk 0:02:16.8]}
22... Qe7 {[%clk 0:00:15.7]} 23. Nf4 {[%clk 0:02:14.2]} 23... a4 {[%clk
0:00:13.8]} 24. Ng6+ {[%clk 0:02:14.1]} 1-0